bitfinex/quotes_SOLUSD_20250212
["timestamp","ask_amount","ask_price","bid_price","bid_amount"]
[1739322426398,15.30633323,198.14,198.07,15.30633323]
[1739322427038,15.30633323,198.14,198.08,5.0484]
[1739322429318,15.30633323,198.15,198.08,20.35473323]
[1739322429511,15.30633323,198.16,198.09,15.30633323]
[1739322429713,15.30633323,198.15,198.08,20.35473323]
[1739322430627,15.30633323,198.14,198.08,5.0484]
[1739322431135,15.30633323,198.13,198.08,5.0484]
[1739322431333,15.30633323,198.15,198.08,20.35473323]
[1739322433211,15.30633323,198.17,198.1,15.30633323]
[1739322433412,15.30633323,198.17,198.1,16.90973323]
[1739322433616,15.30633323,198.16,198.1,1.6034]
[1739322434508,15.36933323,198.18,198.11,15.30633323]
[1739322435042,15.36933323,198.18,198.12,5.0474]
[1739322435914,0.063,198.18,198.12,20.35373323]
[1739322436442,0.063,198.18,198.13,15.30633323]
[1739322436742,0.063,198.18,198.13,28.71818176]
[1739322437116,0.063,198.18,198.13,13.41184853]
[1739322438022,0.063,198.18,198.14,5.0469]
[1739322439132,0.063,198.18,198.15,28.71818176]
[1739322440224,0.063,198.18,198.16,5.0464]
[1739322442037,0.063,198.18,198.17,15.30633323]
[1739322442229,15.36933323,198.23,198.17,28.96916176]
[1739322442230,0.063,198.23,198.17,28.96916176]
[1739322442537,0.063,198.23,198.19,13.41184853]
[1739322443017,15.36933323,198.23,198.18,1.6034]
[1739322443212,15.30633323,198.2,198.16,5.0464]
[1739322443851,15.30633323,198.2,198.15,5.0466]
[1739322444006,0.063,198.23,198.15,5.0466]
[1739322444007,15.30633323,198.18,198.15,5.0466]
[1739322444414,15.30633323,198.19,198.15,5.0466]
[1739322446039,15.30633323,198.19,198.14,5.0469]
[1739322446431,15.30633323,198.18,198.14,5.0469]
[1739322446633,5.0449,198.22,198.12,13.41184853]
[1739322446634,15.30633323,198.16,198.12,5.0472]
[1739322446838,15.30633323,198.15,198.12,5.0472]
[1739322447057,15.30633323,198.16,198.12,5.0472]
[1739322447528,15.30633323,198.14,198.1,5.0479]
[1739322448034,15.30633323,198.14,198.09,5.0482]
[1739322450551,15.30633323,198.13,198.09,5.0482]
[1739322454048,0.063,198.18,198.08,1.6334]
[1739322454049,15.30633323,198.11,198.08,0.03]
[1739322454260,15.30633323,198.1,198.08,0.03]
[1739322455066,15.30633323,198.09,198.08,0.03]
[1739322455653,9.80557382,198.09,198.08,0.03]
[1739322457666,15.32107617,198.09,198.08,0.03]
[1739322460339,0.12549,198.05,198.03,0.03]
[1739322460563,15.32107617,198.04,198.03,0.03]
[1739322460766,15.44656617,198.04,198.03,0.03]
[1739322461673,20.49596617,198.04,198.03,0.03]
[1739322462668,15.32107617,198.04,198.03,0.03]
[1739322477766,9.8111468,198.04,198.03,0.03]
[1739322479360,9.8111468,198.05,198.03,0.03]
[1739322480371,9.8111468,198.07,198.03,0.03]
[1739322480564,9.8111468,198.06,198.03,0.03]
[1739322480771,9.8111468,198.04,198.03,0.03]
[1739322489070,189.02549,198.11,198.03,0.03]
[1739322489071,9.8111468,198.07,198.03,0.03]
[1739322489275,9.8111468,198.08,198.03,0.03]
[1739322490194,9.8111468,198.09,198.03,0.03]
[1739322491923,9.8111468,198.08,198.03,0.03]
[1739322492383,9.8111468,198.09,198.03,0.03]
[1739322492984,9.8111468,198.07,198.03,5.0797]
[1739322493498,9.8111468,198.05,198.03,0.03]
[1739322493696,9.8111468,198.04,198.03,0.03]
[1739322495800,9.8111468,198.07,198.03,0.03]
[1739322496290,9.8741468,198.08,198.03,0.03]
[1739322497391,9.8111468,198.07,198.03,0.03]
[1739322497911,9.8111468,198.06,198.03,0.03]
[1739322498301,9.8111468,198.07,198.03,0.03]
[1739322499713,9.8111468,198.06,198.03,0.03]
[1739322500712,9.8111468,198.04,198.03,0.03]
[1739322503615,9.8111468,198.05,198.03,0.03]
[1739322503916,9.8111468,198.06,198.03,0.03]
[1739322504103,9.8111468,198.05,198.03,0.03]
[1739322505318,0.063,198.08,198.03,0.03]
[1739322505319,9.8111468,198.06,198.03,0.03]
[1739322505489,9.8111468,198.05,198.03,0.03]
[1739322505919,9.8111468,198.06,198.03,0.03]
[1739322506819,0.063,198.08,198.03,0.03]
[1739322507211,9.8741468,198.08,198.03,0.03]
[1739322507728,9.8111468,198.06,198.03,0.03]
[1739322507906,9.8111468,198.04,198.03,0.03]
[1739322508229,9.8111468,198.05,198.03,0.03]
[1739322509829,9.8111468,198.06,198.03,0.03]
[1739322510549,9.8111468,198.05,198.03,0.03]
[1739322510734,9.8111468,198.04,198.03,0.03]
[1739322511105,9.8111468,198.05,198.03,0.03]
[1739322511300,9.8111468,198.06,198.03,0.03]
[1739322511729,9.8111468,198.07,198.03,0.03]
[1739322512029,9.8741468,198.08,198.03,0.03]
[1739322512217,0.063,198.08,198.03,0.03]
[1739322512536,9.8741468,198.08,198.03,0.03]
[1739322512719,9.8111468,198.07,198.03,0.03]
[1739322514932,9.8111468,198.06,198.03,0.03]
[1739322515132,9.8111468,198.07,198.03,0.03]
[1739322516032,0.063,198.08,198.03,0.03]
[1739322516239,0.063,198.08,198.03,9.8411468]
[1739322517244,0.063,198.08,198.04,9.8111468]
[1739322517611,0.063,198.08,198.05,5.0492]
[1739322519627,0.063,198.08,198.04,5.0494]
[1739322519840,0.063,198.08,198.04,14.8605468]
[1739322523533,0.063,198.08,198.04,27.4842468]
[1739322524442,0.063,198.08,198.05,23.22299533]
[1739322524623,0.063,198.08,198.07,9.8111468]
[1739322526144,0.063,198.08,198.07,14.8598468]
[1739322527751,9.8111468,198.17,198.07,40.89349533]
[1739322527921,9.8111468,198.16,198.09,9.8111468]
[1739322528124,9.8111468,198.15,198.08,9.8111468]
[1739322528622,9.8111468,198.16,198.09,9.8111468]
[1739322529353,9.8111468,198.15,198.08,9.8111468]
[1739322529552,9.8111468,198.14,198.08,5.0484]
[1739322529736,9.8111468,198.15,198.08,14.8595468]
[1739322530651,9.8111468,198.16,198.09,9.8111468]
[1739322531355,9.8741468,198.16,198.09,9.8111468]
[1739322532252,0.063,198.16,198.1,9.8111468]
[1739322532656,0.063,198.16,198.11,5.0477]
[1739322538259,9.8741468,198.16,198.11,5.0477]
[1739322538464,9.8111468,198.15,198.11,5.0477]
[1739322538946,9.8741468,198.16,198.11,5.0477]
[1739322539449,9.8741468,198.16,198.1,17.6672]
[1739322539760,9.8741468,198.16,198.1,5.0479]
[1739322539964,9.8111468,198.14,198.1,5.0479]
[1739322540434,9.8741468,198.16,198.1,5.0479]
[1739322540842,9.8741468,198.16,198.1,17.6677]
[1739322543562,9.8111468,198.15,198.1,5.0479]
[1739322543860,9.8111468,198.14,198.1,5.0479]
[1739322544953,9.8111468,198.13,198.08,5.0484]
[1739322545266,9.8111468,198.11,198.08,5.0484]
[1739322546070,9.8111468,198.1,198.07,0.03]
[1739322546252,9.8111468,198.09,198.07,0.03]
[1739322546451,9.8111468,198.1,198.07,5.0785]
[1739322547169,9.8111468,198.1,198.07,0.03]
[1739322547366,9.8111468,198.13,198.07,0.03]
[1739322547850,9.8111468,198.13,198.07,9.8411468]
[1739322548050,9.8111468,198.15,198.08,9.8111468]
[1739322548559,0.063,198.16,198.07,9.8411468]
[1739322548560,9.8111468,198.14,198.07,9.8411468]
[1739322548867,9.8111468,198.13,198.07,9.8411468]
[1739322549161,9.8111468,198.12,198.07,5.0786]
[1739322549357,9.8111468,198.1,198.07,0.03]
[1739322550271,9.8111468,198.08,198.07,0.03]
[1739322553253,93.759,198.13,198.07,0.03]
[1739322553254,9.8111468,198.1,198.07,0.03]
[1739322556340,9.8111468,198.11,198.07,0.03]
[1739322557872,9.8111468,198.14,198.07,9.8411468]
[1739322558108,9.8111468,198.15,198.08,9.8111468]
[1739322558239,9.8111468,198.15,198.09,9.8111468]
[1739322558442,0.063,198.16,198.11,9.8111468]
[1739322559465,0.063,198.16,198.12,9.8111468]
[1739322560053,0.063,198.16,198.13,5.0471]
[1739322560260,0.063,198.16,198.15,9.8111468]
[1739322562180,0.063,198.16,198.15,5.0466]
[1739322562361,0.063,198.16,198.13,5.047]
[1739322563669,0.063,198.16,198.12,5.0474]
[1739322564381,0.063,198.16,198.12,14.8585468]
[1739322565685,0.063,198.16,198.13,9.8111468]
[1739322565876,0.063,198.16,198.15,9.8111468]
[1739322566664,0.063,198.16,198.14,9.8111468]
[1739322568101,0.063,198.16,198.15,5.0466]
[1739322568395,0.063,198.16,198.15,14.8577468]
[1739322570303,0.063,198.16,198.15,5.0466]
[1739322572075,0.063,198.18,198.14,5.0469]
[1739322572501,9.8741468,198.18,198.14,5.0469]
[1739322573078,0.063,198.18,198.14,5.0469]
[1739322574002,0.063,198.18,198.15,9.8111468]
[1739322574201,0.063,198.18,198.14,22.4284468]
[1739322575191,0.063,198.18,198.16,9.8111468]
[1739322575812,0.063,198.18,198.15,9.8111468]
[1739322576702,0.063,198.18,198.16,5.0464]
[1739322577098,0.063,198.18,198.16,14.8575468]
[1739322579686,0.063,198.18,198.16,5.0464]
[1739322580616,0.063,198.18,198.15,5.0765]
[1739322581595,9.8741468,198.18,198.15,5.0765]
[1739322581907,0.063,198.18,198.15,5.0765]
[1739322583511,0.063,198.18,198.15,0.03]
[1739322585316,9.8741468,198.18,198.15,0.03]
[1739322585629,9.8111468,198.16,198.15,0.03]
[1739322585815,9.8111468,198.17,198.15,0.03]
[1739322587619,9.8111468,198.16,198.15,0.03]
[1739322589122,14.9830368,198.16,198.15,0.03]
[1739322589317,20.0,198.12,198.05,7.84163457]
[1739322589517,9.8111468,198.08,198.05,7.84163457]
[1739322589724,9.8111468,198.08,198.03,0.03]
[1739322590720,9.8111468,198.08,198.03,5.0797]
[1739322591021,9.8111468,198.08,198.03,0.03]
[1739322591721,9.8111468,198.09,198.03,0.03]
[1739322592098,9.8111468,198.08,198.03,0.03]
[1739322592415,1.6331,198.1,198.03,0.03]
[1739322592416,9.8111468,198.09,198.03,0.03]
[1739322593413,9.8111468,198.09,198.03,5.0797]
[1739322593923,9.8111468,198.08,198.03,0.03]
[1739322595641,14.8595468,198.08,198.03,0.03]
[1739322599032,15.1105268,198.08,198.03,0.03]
[1739322601330,21.5586268,198.08,198.03,0.03]
[1739322601832,20.0,198.05,198.03,0.03]
[1739322602044,29.9366368,198.04,198.03,0.03]
[1739322602924,34.9860368,198.04,198.03,0.03]
[1739322603131,51.03648533,198.04,198.02,0.03]
[1739322603323,51.03648533,198.04,197.95,0.03]
[1739322603324,20.0,197.99,197.95,0.03]
[1739322603640,9.8111468,197.96,197.95,0.03]
[1739322604134,9.9366368,197.96,197.95,0.03]
[1739322604553,9.9366368,197.96,197.89,7.84163457]
[1739322604757,107.4,197.98,197.89,7.84163457]
[1739322604758,9.8111468,197.9,197.89,4.6126778]
[1739322605118,10.0621268,197.9,197.89,4.6126778]
[1739322605716,15.35200274,197.91,197.89,4.6126778]
[1739322605921,15.35200274,197.93,197.89,4.6126778]
[1739322606118,1.6386,197.95,197.89,4.6126778]
[1739322606119,15.35200274,197.95,197.89,4.6126778]
[1739322606324,15.35200274,197.94,197.89,4.6126778]
[1739322606529,15.35200274,197.93,197.89,4.6126778]
[1739322606734,15.35200274,197.93,197.88,0.03]
[1739322607125,15.35200274,197.94,197.88,0.03]
[1739322607342,15.35200274,197.97,197.9,15.35200274]
[1739322607937,15.35200274,197.93,197.88,0.03]
[1739322608267,15.35200274,197.92,197.88,0.03]
[1739322608550,15.35200274,197.93,197.88,0.03]
[1739322609025,16.70151368,197.97,197.88,0.03]
[1739322609026,15.35200274,197.92,197.88,0.03]
[1739322609228,15.35200274,197.89,197.88,0.03]
[1739322609850,15.47749274,197.89,197.88,0.03]
[1739322610546,121.87749274,197.89,197.88,0.03]
[1739322611129,28.88934127,197.89,197.88,0.03]
[1739322611335,20.53079274,197.89,197.88,0.03]
[1739322612251,15.47749274,197.89,197.88,0.03]
[1739322612438,31.33094684,197.89,197.88,0.03]
[1739322612743,31.20545684,197.89,197.88,0.03]
[1739322613727,15.8534541,197.89,197.88,0.03]
[1739322615351,31.20545684,197.89,197.88,0.03]
[1739322615927,36.50973684,197.89,197.88,0.03]
[1739322620855,156.32158537,197.89,197.88,0.03]
[1739322621651,156.32158537,197.89,197.76,20.40860274]
[1739322621652,0.12549,197.85,197.76,5.0566]
[1739322621833,15.35200274,197.8,197.76,5.0566]
[1739322622150,15.35200274,197.81,197.76,5.0566]
[1739322622451,15.35200274,197.82,197.76,5.0566]
[1739322625054,15.35200274,197.83,197.76,33.05010274]
[1739322625954,28.68677877,197.84,197.77,15.35200274]
[1739322626327,28.68677877,197.84,197.78,15.35200274]
[1739322627177,13.33477603,197.84,197.78,15.35200274]
[1739322627339,13.33477603,197.84,197.81,20.40730274]
[1739322628165,13.33477603,197.84,197.81,5.0553]
[1739322628536,13.33477603,197.84,197.79,5.0556]
[1739322628537,28.68677877,197.84,197.79,5.0556]
[1739322629054,15.35200274,197.83,197.79,5.0556]
[1739322629358,15.35200274,197.82,197.78,5.0861]
[1739322629561,15.35200274,197.82,197.78,0.03]
[1739322629731,15.35200274,197.8,197.78,0.03]
[1739322630244,15.35200274,197.79,197.78,0.03]
[1739322636061,15.47749274,197.79,197.78,0.03]
[1739322636468,15.60298274,197.79,197.78,0.03]
[1739322639942,34.07063127,197.79,197.78,0.03]
[1739322644170,43.4990377,197.79,197.78,0.03]
[1739322644671,149.8990377,197.79,197.78,0.03]
[1739322647754,150.8990377,197.79,197.78,0.03]
[1739322647945,152.4371377,197.79,197.78,0.03]
[1739322649572,158.6346377,197.79,197.78,0.03]
[1739322650355,157.6346377,197.79,197.78,0.03]
[1739322650551,133.7346377,197.79,197.78,0.03]
[1739322650751,134.7346377,197.79,197.78,0.03]
[1739322651866,133.7346377,197.79,197.78,0.03]
[1739322652171,134.7346377,197.79,197.78,0.03]
[1739322652473,133.7346377,197.79,197.78,0.03]
[1739322655655,128.22406355,197.79,197.78,0.03]
[1739322657594,107.07661502,197.79,197.78,0.03]
[1739322662570,24.57661502,197.79,197.78,0.03]
[1739322663782,37.98846355,197.79,197.78,0.03]
[1739322666198,9.84142859,197.69,197.68,0.03]
[1739322667198,9.84142859,197.7,197.68,0.03]
[1739322667404,9.84142859,197.71,197.68,0.03]
[1739322667566,9.84142859,197.72,197.68,0.03]
[1739322669666,9.84142859,197.7,197.68,0.03]
[1739322670769,14.89952859,197.7,197.68,0.03]
[1739322671307,9.84142859,197.69,197.68,0.03]
[1739322672677,9.84142859,197.7,197.68,0.03]
[1739322672996,9.84142859,197.71,197.68,0.03]
[1739322674087,9.84142859,197.72,197.68,0.03]
[1739322674290,13.13297652,197.74,197.68,9.87142859]
[1739322675711,9.84142859,197.73,197.68,5.0884]
[1739322675882,9.84142859,197.72,197.68,0.03]
[1739322676096,9.84142859,197.71,197.68,0.03]
[1739322677694,9.84142859,197.7,197.68,0.03]
[1739322679186,10.09240859,197.69,197.68,0.03]
[1739322679900,15.15080859,197.69,197.68,0.03]
[1739322681378,28.56265712,197.69,197.68,0.03]
[1739322681579,28.56265712,197.69,197.58,0.03]
[1739322681580,0.12549,197.65,197.58,0.03]
[1739322681792,9.84142859,197.61,197.58,0.03]
[1739322682180,9.84142859,197.62,197.58,0.03]
[1739322682973,0.12549,197.65,197.58,5.0911]
[1739322682974,9.84142859,197.63,197.58,5.0911]
[1739322683181,9.84142859,197.63,197.58,0.03]
[1739322683384,9.84142859,197.62,197.58,0.03]
[1739322683884,9.84142859,197.61,197.58,0.03]
[1739322685185,9.84142859,197.62,197.58,0.03]
[1739322685389,9.84142859,197.61,197.58,0.03]
[1739322685896,9.84142859,197.62,197.58,0.03]
[1739322686101,9.84142859,197.63,197.58,0.03]
[1739322686285,9.84142859,197.66,197.6,9.84142859]
[1739322686488,9.84142859,197.67,197.6,9.84142859]
[1739322686688,20.0,197.68,197.62,9.84142859]
[1739322687001,20.0,197.68,197.63,9.84142859]
[1739322687483,9.84142859,197.69,197.62,9.84142859]
[1739322687679,9.84142859,197.72,197.66,9.84142859]
[1739322688603,9.84142859,197.73,197.66,9.84142859]
[1739322688778,9.84142859,197.73,197.67,9.84142859]
[1739322689704,15.37848536,197.73,197.66,15.37848536]
[1739322690599,15.37848536,197.72,197.65,35.37848536]
[1739322690992,15.37848536,197.71,197.65,20.0]
[1739322691178,15.37848536,197.7,197.63,15.37848536]
[1739322692304,15.37848536,197.7,197.64,5.0597]
[1739322693823,13.25846652,197.74,197.64,5.0597]
[1739322693824,15.37848536,197.68,197.64,5.0597]
[1739322694925,15.37848536,197.68,197.63,5.0599]
[1739322695098,15.37848536,197.69,197.63,5.0599]
[1739322695297,15.37848536,197.69,197.63,20.43838536]
[1739322696911,15.37848536,197.69,197.63,5.0599]
[1739322697315,15.37848536,197.68,197.63,5.0599]
[1739322698506,15.37848536,197.67,197.61,20.43868536]
[1739322698814,15.37848536,197.68,197.62,15.37848536]
[1739322699029,15.37848536,197.69,197.62,15.37848536]
[1739322699516,15.37848536,197.69,197.63,0.03]
[1739322699686,15.37848536,197.69,197.63,5.0899]
[1739322700116,0.12549,197.69,197.63,20.46838536]
[1739322700292,15.37848536,197.7,197.64,15.37848536]
[1739322700488,15.37848536,197.7,197.63,20.46838536]
[1739322702212,20.43658536,197.7,197.63,20.46838536]
[1739322702417,15.37848536,197.69,197.63,5.0899]
[1739322703418,20.43688536,197.69,197.63,5.0899]
[1739322704513,15.37848536,197.69,197.63,5.0899]
[1739322705418,15.37848536,197.7,197.63,20.46838536]
[1739322705910,15.37848536,197.69,197.63,5.0899]
[1739322707418,20.43688536,197.69,197.63,5.0899]
[1739322707915,15.37848536,197.7,197.63,20.46838536]
[1739322708230,15.37848536,197.7,197.64,15.37848536]
[1739322708424,15.37848536,197.7,197.63,20.46838536]
[1739322709023,0.25098,197.71,197.65,15.37848536]
[1739322709824,9.90596753,197.72,197.65,9.84296753]
[1739322710124,0.18849,197.72,197.66,9.84296753]
[1739322710818,0.18849,197.72,197.63,5.0899]
[1739322710819,10.03145753,197.72,197.65,9.84296753]
[1739322711015,9.84296753,197.71,197.65,9.84296753]
[1739322711224,9.84296753,197.71,197.65,14.90216753]
[1739322711430,9.84296753,197.71,197.64,14.90256753]
[1739322711595,9.84296753,197.69,197.63,14.93286753]
[1739322712117,9.84296753,197.7,197.63,14.93286753]
[1739322712719,9.96845753,197.71,197.64,9.84296753]
[1739322713238,10.03145753,197.71,197.64,9.84296753]
[1739322713597,0.063,197.71,197.65,9.84296753]
[1739322713798,0.063,197.71,197.66,9.84296753]
[1739322714818,0.063,197.71,197.66,14.90196753]
[1739322715014,0.063,197.71,197.67,9.84296753]
[1739322715817,0.063,197.71,197.7,9.84296753]
[1739322716122,0.063,197.71,197.69,9.84296753]
[1739322716822,0.063,197.71,197.68,9.84296753]
[1739322717129,0.063,197.71,197.69,5.0584]
[1739322717723,0.063,197.71,197.7,9.84296753]
[1739322718718,0.063,197.71,197.69,14.90136753]
[1739322719603,0.063,197.71,197.7,9.84296753]
[1739322721518,0.063,197.71,197.7,14.90106753]
[1739322726710,0.063,197.71,197.7,28.31291606]
[1739322727029,0.063,197.71,197.7,14.90106753]
[1739322745329,0.063,197.71,197.7,54.27293765]
[1739322745832,0.063,197.71,197.7,14.90106753]
[1739322750641,0.063,197.71,197.69,9.84296753]
[1739322751249,0.063,197.71,197.69,14.90126753]
[1739322751461,0.063,197.71,197.69,9.84296753]
[1739322753256,0.063,197.71,197.68,14.93156753]
[1739322753646,0.063,197.71,197.68,0.03]
[1739322758861,0.063,197.71,197.69,9.84296753]
[1739322759042,0.063,197.71,197.7,9.84296753]
[1739322759359,0.063,197.71,197.68,9.87296753]
[1739322759544,0.063,197.71,197.68,0.03]
[1739322761471,0.063,197.71,197.68,9.87296753]
[1739322762753,0.063,197.71,197.7,9.84296753]
[1739322763341,0.063,197.71,197.68,9.87296753]
[1739322764555,0.063,197.71,197.68,14.93156753]
[1739322767662,0.063,197.71,197.69,9.84296753]
[1739322768846,0.063,197.71,197.68,14.93156753]
[1739322769783,0.063,197.71,197.68,0.03]
[1739322776378,9.84296753,197.69,197.68,0.03]
[1739322777375,9.84296753,197.7,197.68,0.03]
[1739322777565,0.063,197.71,197.68,0.03]
[1739322780177,9.90596753,197.71,197.68,0.03]
[1739322781381,14.96406753,197.71,197.68,0.03]
[1739322783657,9.84296753,197.7,197.68,0.03]
[1739322784662,9.84296753,197.69,197.68,0.03]
[1739322785063,9.96845753,197.69,197.68,0.03]
[1739322786174,14.90106753,197.7,197.68,0.03]
[1739322786780,0.12549,197.69,197.68,0.03]
[1739322787082,9.96845753,197.69,197.68,0.03]
[1739322787474,11.63285753,197.69,197.68,0.03]
[1739322788783,16.69125753,197.69,197.68,0.03]
[1739322791581,32.22859606,197.69,197.68,0.0001]
[1739322792180,31.22859606,197.69,197.68,0.0001]
[1739322792378,30.22859606,197.69,197.68,0.0001]
[1739322792571,31.22859606,197.69,197.68,0.0001]
[1739322792876,30.22859606,197.69,197.68,0.0001]
[1739322793288,31.22859606,197.69,197.68,0.0001]
[1739322794480,32.47624982,197.69,197.68,0.0001]
[1739322795898,33.47624982,197.69,197.68,0.0001]
[1739322797892,32.47624982,197.69,197.68,0.0001]
[1739322800683,70.03899387,197.69,197.68,0.0001]
[1739322801677,0.12549,197.64,197.63,0.03]
[1739322801877,9.96845753,197.64,197.63,0.03]
[1739322802475,15.02815753,197.64,197.63,0.03]
[1739322803496,29.44000606,197.64,197.63,0.0001]
[1739322804075,36.00860606,197.64,197.63,0.0001]
[1739322804280,43.1548656,197.64,197.63,0.0001]
[1739322804475,43.1548656,197.64,197.48,6.5855]
[1739322804476,0.12549,197.58,197.48,6.5855]
[1739322804791,9.84296753,197.54,197.48,6.5855]
[1739322804995,0.12549,197.55,197.48,0.03]
[1739322805190,9.84296753,197.52,197.48,0.03]
[1739322805593,9.84296753,197.51,197.48,0.03]
[1739322805896,9.84296753,197.52,197.48,0.03]
[1739322806794,9.96845753,197.51,197.48,0.03]
[1739322806979,9.84296753,197.5,197.48,0.03]
[1739322809197,9.96845753,197.51,197.48,0.03]
[1739322810196,9.84296753,197.5,197.48,0.03]
[1739322810498,9.96845753,197.51,197.48,0.03]
[1739322812979,0.12549,197.51,197.48,0.03]
[1739322814098,9.84296753,197.49,197.48,0.03]
[1739322814489,9.84296753,197.5,197.48,0.03]
[1739322815300,106.4,197.56,197.48,0.03]
[1739322815301,9.84296753,197.53,197.48,0.03]
[1739322815613,9.84296753,197.52,197.48,0.03]
[1739322816387,9.84296753,197.53,197.48,0.03]
[1739322816594,9.84296753,197.54,197.48,0.03]
[1739322817306,9.84296753,197.55,197.49,9.84296753]
[1739322817509,9.84296753,197.55,197.48,9.87296753]
[1739322818190,9.84296753,197.55,197.48,14.93656753]
[1739322819309,9.84296753,197.54,197.48,14.93656753]
[1739322820696,9.84296753,197.54,197.48,5.0936]
[1739322821605,9.96845753,197.53,197.48,0.03]
[1739322821806,9.84296753,197.52,197.48,0.03]
[1739322823494,9.96845753,197.53,197.48,0.03]
[1739322826708,9.84296753,197.51,197.48,0.03]
[1739322826913,9.84296753,197.5,197.48,0.03]
[1739322827213,9.96845753,197.49,197.48,0.03]
[1739322827792,15.03195753,197.49,197.48,0.03]
[1739322828594,28.44380606,197.49,197.48,0.03]
[1739322829482,15.03195753,197.49,197.48,0.03]
[1739322829917,9.96845753,197.49,197.48,0.03]
[1739322830288,15.15744753,197.49,197.48,0.03]
[1739322830596,10.09394753,197.49,197.48,0.03]
[1739322830798,9.84296753,197.51,197.48,0.03]
[1739322831723,15.15744753,197.49,197.48,0.03]
[1739322833110,10.09394753,197.49,197.48,0.03]
[1739322833332,0.12549,197.48,197.41,7.54495753]
[1739322833621,9.84296753,197.49,197.41,7.54495753]
[1739322833813,0.25098,197.51,197.48,0.03]
[1739322835517,5.0632,197.5,197.48,0.03]
[1739322835713,9.84296753,197.49,197.48,0.03]
[1739322837499,14.90596753,197.51,197.48,0.03]
[1739322837816,0.12549,197.51,197.48,0.03]
[1739322838721,9.84296753,197.52,197.48,0.03]
[1739322838897,9.84296753,197.53,197.48,0.03]
[1739322839099,0.12549,197.52,197.48,0.03]
[1739322841001,0.25098,197.52,197.48,0.03]
[1739322841420,9.84296753,197.52,197.48,0.03]
[1739322843599,9.84296753,197.54,197.48,0.03]
[1739322843802,14.90506753,197.55,197.48,9.87296753]
[1739322844004,9.84296753,197.55,197.48,9.87296753]
[1739322844203,14.90456753,197.57,197.5,9.84296753]
[1739322844401,9.84296753,197.57,197.5,9.84296753]
[1739322845132,0.12549,197.56,197.5,9.84296753]
[1739322845330,0.12549,197.56,197.49,9.84296753]
[1739322845503,9.96845753,197.56,197.49,9.84296753]
[1739322845833,15.03015753,197.56,197.49,9.84296753]
[1739322846499,9.96845753,197.54,197.48,0.03]
[1739322846703,9.84296753,197.53,197.48,0.03]
[1739322847613,5.18829,197.52,197.48,0.03]
[1739322848517,15.03125753,197.52,197.48,0.03]
[1739322849429,9.84296753,197.52,197.48,0.03]
[1739322850241,14.90556753,197.53,197.48,0.03]
[1739322850928,9.84296753,197.53,197.48,0.03]
[1739322851130,9.84296753,197.54,197.48,0.03]
[1739322851912,9.84296753,197.53,197.48,0.03]
[1739322852908,9.96845753,197.52,197.48,0.03]
[1739322855229,15.03135753,197.52,197.48,0.03]
[1739322856224,9.84296753,197.53,197.48,0.03]
[1739322856534,9.84296753,197.54,197.48,0.03]
[1739322857030,9.84296753,197.53,197.48,0.03]
[1739322857532,14.90556753,197.53,197.48,0.03]
[1739322858134,5.0626,197.53,197.48,0.03]
[1739322858345,14.90556753,197.53,197.48,0.03]
[1739322858513,0.063,197.52,197.48,0.03]
[1739322859837,5.1257,197.52,197.48,0.03]
[1739322861427,14.96866753,197.52,197.48,0.03]
[1739322864526,9.84296753,197.5,197.48,0.03]
[1739322864833,14.90646753,197.49,197.48,0.03]
[1739322865531,15.03195753,197.49,197.48,0.03]
[1739322871847,9.84296753,197.5,197.48,0.03]
[1739322872054,9.84296753,197.51,197.48,0.03]
[1739322872960,14.90616753,197.51,197.48,0.03]
[1739322873263,9.96845753,197.49,197.48,0.03]
[1739322874529,15.03195753,197.49,197.48,0.03]
[1739322878373,0.12549,197.49,197.48,0.03]